fUSD/lending_fUSD_20250113
["ID","MTS","AMOUNT","RATE_DAILY","PERIOD"]
[348790552,1736784652578,-500.0,0.00011351,2]
[348790553,1736784652588,-500.0,0.00011351,2]
[348790554,1736784652599,-500.0,0.00011351,2]
[348790555,1736784652609,-500.0,0.00011351,2]
[348790556,1736784652618,-500.0,0.00011351,2]
[348790557,1736784652628,-500.0,0.00011351,2]
[348790558,1736784652639,-500.0,0.00011351,2]
[348790559,1736784652650,-1004.08,0.00011351,2]
[348790560,1736784652660,-500.0,0.00011351,2]
[348790561,1736784652670,-500.0,0.00011351,2]
[348790562,1736784652680,-500.0,0.00011351,2]
[348790563,1736784652691,-500.0,0.00011351,2]
[348790564,1736784652703,-500.0,0.00011351,2]
[348790565,1736784652713,-500.0,0.00011351,2]
[348790566,1736784652723,-500.0,0.00011351,2]
[348790567,1736784652733,-500.0,0.00011351,2]
[348790568,1736784652744,-500.0,0.00011351,2]
[348790569,1736784652754,-500.0,0.00011351,2]
[348790570,1736784652764,-500.0,0.00011351,2]
[348790571,1736784652774,-500.0,0.00011351,2]
[348790572,1736784652784,-500.0,0.00011351,2]
[348790573,1736784652795,-500.0,0.00011351,2]
[348790574,1736784652806,-500.0,0.00011351,2]
[348790575,1736784652815,-748.64,0.00011351,2]
[348790576,1736784652826,-500.0,0.00011351,2]
[348790577,1736784652836,-500.0,0.00011351,2]
[348790578,1736784652847,-500.0,0.00011351,2]
[348790579,1736784652858,-500.0,0.00011351,2]
[348790580,1736784652869,-560.9,0.00011351,2]
[348790581,1736784652879,-500.0,0.00011351,2]
[348790582,1736784652889,-500.0,0.00011351,2]
[348790583,1736784652900,-500.0,0.00011351,2]
[348790584,1736784652910,-500.0,0.00011351,2]
[348790585,1736784652921,-500.0,0.00011351,2]
[348790586,1736784652931,-500.0,0.00011351,2]
[348790587,1736784652944,-500.0,0.00011351,2]
[348790588,1736784652954,-1977.99,0.00011351,2]
[348790589,1736784652964,-500.0,0.00011351,2]
[348790590,1736784652975,-500.0,0.00011351,2]
[348790591,1736784652985,-500.0,0.00011351,2]
[348790592,1736784652996,-500.0,0.00011351,2]
[348790593,1736784653007,-500.0,0.00011351,2]
[348790594,1736784653017,-500.0,0.00011351,2]
[348790595,1736784653028,-500.0,0.00011351,2]
[348790596,1736784653038,-500.0,0.00011351,2]
[348790597,1736784653050,-500.0,0.00011351,2]
[348790598,1736784653061,-500.0,0.00011351,2]
[348790599,1736784653071,-500.0,0.00011351,2]
[348790600,1736784653081,-500.0,0.00011351,2]
[348790601,1736784653093,-500.0,0.00011351,2]
[348790602,1736784653104,-500.0,0.00011351,2]
[348790603,1736784653321,-500.0,0.00011351,2]
[348790604,1736784653338,-500.0,0.00011351,2]
[348790605,1736784653350,-500.0,0.00011351,2]
[348790606,1736784653360,-500.0,0.00011351,2]
[348790607,1736784653370,-500.0,0.00011351,2]
[348790608,1736784653380,-1272.9,0.00011351,2]
[348790609,1736784653390,-500.0,0.00011351,2]
[348790610,1736784653400,-500.0,0.00011351,2]
[348790611,1736784653409,-500.0,0.00011351,2]
[348790612,1736784653419,-273.88076805,0.00011351,2]
[348790613,1736784653437,-226.11923195,0.00011351,2]
[348790614,1736784653447,-33.18787907,0.00011351,2]
[348790615,1736784653459,-466.81212093,0.00011351,2]
[348790616,1736784653469,-598.48787907,0.00011351,2]
[348790617,1736784653489,-208.80212093,0.00011351,2]
[348790618,1736784653498,-165.27265018,0.00011351,2]
[348790619,1736784653510,-535.85762465,0.00011351,2]
[348790620,1736784653522,-528.96972517,0.00011351,2]
[348790621,1736784653533,-500.0,0.00011351,2]
[348790622,1736784653542,-83.09657294,0.00011351,2]
[348790623,1736784653575,-500.0,0.00010803,2]
[348790624,1736784653585,-416.90342706,0.00011351,2]
[348790625,1736784653595,-500.0,0.00011351,2]
[348790626,1736784653605,-500.0,0.00011351,2]
[348790627,1736784653614,-500.0,0.00011351,2]
[348790628,1736784653624,-500.0,0.00011351,2]
[348790629,1736784653634,-500.0,0.00011351,2]
[348790630,1736784653644,-500.0,0.00011351,2]
[348790631,1736784653653,-500.0,0.00011351,2]
[348790632,1736784653663,-500.0,0.00011351,2]
[348790633,1736784653673,-500.0,0.00011351,2]
[348790634,1736784653684,-500.0,0.00011351,2]
[348790635,1736784653695,-498.0,0.00011351,2]
[348790636,1736784653705,-500.0,0.00011351,2]
[348790637,1736784653714,-500.0,0.00011351,2]
[348790638,1736784653725,-2096.32,0.00011351,2]
[348790639,1736784653734,-500.0,0.00011351,2]
[348790640,1736784653744,-500.0,0.00011351,2]
[348790641,1736784653754,-500.0,0.00011351,2]
[348790642,1736784653764,-500.0,0.00011351,2]
[348790643,1736784653777,-500.0,0.00011351,2]
[348790644,1736784653787,-500.0,0.00011351,2]
[348790645,1736784653797,-500.0,0.00011351,2]
[348790646,1736784653806,-500.0,0.00011351,2]
[348790647,1736784653815,-500.0,0.00011351,2]
[348790648,1736784653825,-500.0,0.00011351,2]
[348790649,1736784653836,-1195.07,0.00011351,2]
[348790650,1736784653847,-500.0,0.00011351,2]
[348790651,1736784653857,-1195.07,0.00011351,2]
[348790652,1736784653866,-500.0,0.00011351,2]
[348790653,1736784653876,-500.0,0.00011351,2]
[348790654,1736784653886,-500.0,0.00011351,2]
[348790655,1736784653896,-500.0,0.00011351,2]
[348790656,1736784653907,-500.0,0.00011351,2]
[348790657,1736784653917,-500.0,0.00011351,2]
[348790658,1736784653926,-568.25,0.00011351,2]
[348790659,1736784653937,-500.0,0.00011351,2]
[348790660,1736784653947,-500.0,0.00011351,2]
[348790661,1736784653957,-500.0,0.00011351,2]
[348790662,1736784653967,-1724.94,0.00011351,2]
[348790663,1736784653977,-500.0,0.00011351,2]
[348790664,1736784653987,-500.0,0.00011351,2]
[348790665,1736784653997,-217.18838431,0.00011352,2]
[348790666,1736784654006,-500.07291793,0.00011352,2]
[348790667,1736784654016,-500.0,0.00011352,2]
[348790668,1736784654025,-510.95,0.00011352,2]
[348790669,1736784654034,-500.0,0.00011352,2]
[348790670,1736784654043,-500.0,0.00011352,2]
[348790671,1736784654053,-500.0,0.00011352,2]
[348790672,1736784654063,-500.0,0.00011352,2]
[348790673,1736784654073,-500.0,0.00011352,2]
[348790674,1736784654083,-500.0,0.00011352,2]
[348790675,1736784654096,-500.0,0.00011352,2]
[348790676,1736784654107,-500.0,0.00011352,2]
[348790677,1736784654116,-500.0,0.00011352,2]
[348790678,1736784654126,-500.0,0.00011352,2]
[348790679,1736784654136,-500.0,0.00011352,2]
[348790680,1736784654146,-500.0,0.00011352,2]
[348790681,1736784654155,-500.0,0.00011352,2]
[348790682,1736784654165,-500.0,0.00011352,2]
[348790683,1736784654175,-500.0,0.00011352,2]
[348790684,1736784654185,-500.0,0.00011352,2]
[348790685,1736784654197,-500.0,0.00011352,2]
[348790686,1736784654207,-500.0,0.00011352,2]
[348790687,1736784654216,-500.0,0.00011352,2]
[348790688,1736784654226,-500.0,0.00011352,2]
[348790689,1736784654236,-500.0,0.00011352,2]
[348790690,1736784654246,-500.0,0.00011352,2]
[348790691,1736784654256,-500.0,0.00011352,2]
[348790692,1736784654266,-500.0,0.00011353,2]
[348790693,1736784654276,-500.0,0.00011353,2]
[348790694,1736784654286,-513.23,0.00011353,2]
[348790695,1736784654296,-500.0,0.00011353,2]
[348790696,1736784654306,-500.0,0.00011353,2]
[348790697,1736784654317,-500.0,0.00011353,2]
[348790698,1736784654326,-500.0,0.00011353,2]
[348790699,1736784654336,-500.0,0.00011353,2]
[348790700,1736784654348,-500.0,0.00011353,2]
[348790701,1736784654358,-500.0,0.00011353,2]
[348790702,1736784654369,-500.0,0.00011353,2]
[348790703,1736784654379,-500.0,0.00011353,2]
[348790704,1736784654390,-197.08037359,0.00011353,2]
[348790705,1736784654679,-346.98461568,9.98e-05,2]
[348790706,1736784654705,-153.01538432,9.98e-05,2]
[348790707,1736784654715,-621.03,9.98e-05,2]
[348790708,1736784654725,-543.85969001,0.00010803,2]
[348790709,1736784654735,-500.0,0.00010803,2]
[348790710,1736784654747,-107.0670134,0.00010803,2]
[348790711,1736784654760,-396.50425808,0.00010803,2]
[348790712,1736784654771,-500.0,0.00011077,2]
[348790713,1736784654781,-500.0,0.00011351,2]
[348790714,1736784654792,-302.91962641,0.00011353,2]
[348790715,1736784654803,-500.0,0.00011353,2]
[348790716,1736784654812,-500.0,0.00011353,2]
[348790717,1736784654822,-591.0,0.00011353,2]
[348790718,1736784654832,-500.0,0.00011353,2]
[348790719,1736784654845,-500.0,0.00011353,2]
[348790720,1736784654855,-500.0,0.00011353,2]
[348790721,1736784654865,-500.0,0.00011353,2]
[348790722,1736784654876,-500.0,0.00011353,2]
[348790723,1736784654886,-500.0,0.00011353,2]
[348790724,1736784654896,-500.0,0.00011353,2]
[348790725,1736784654906,-500.0,0.00011353,2]
[348790726,1736784654916,-500.0,0.00011353,2]
[348790727,1736784654925,-500.0,0.00011353,2]
[348790728,1736784654935,-500.0,0.00011353,2]
[348790729,1736784654945,-500.0,0.00011353,2]
[348790730,1736784654954,-603.22,0.00011353,2]
[348790731,1736784654964,-500.0,0.00011353,2]
[348790732,1736784654975,-500.0,0.00011353,2]
[348790733,1736784654985,-565.67,0.00011353,2]
[348790734,1736784654995,-500.0,0.00011353,2]
[348790735,1736784655005,-500.0,0.00011353,2]
[348790736,1736784655014,-500.0,0.00011353,2]
[348790737,1736784655025,-500.0,0.00011353,2]
[348790738,1736784655035,-500.0,0.00011353,2]
[348790739,1736784655047,-500.0,0.00011353,2]
[348790740,1736784655058,-500.0,0.00011353,2]
[348790741,1736784655069,-500.0,0.00011353,2]
[348790742,1736784655079,-500.0,0.00011353,2]
[348790743,1736784655089,-500.0,0.00011353,2]
[348790744,1736784655103,-500.0,0.00011353,2]
[348790745,1736784655113,-500.0,0.00011353,2]
[348790746,1736784655123,-500.0,0.00011353,2]
[348790747,1736784655132,-500.0,0.00011353,2]
[348790748,1736784655142,-500.0,0.00011353,2]
[348790749,1736784655152,-500.0,0.00011353,2]
[348790750,1736784655162,-500.0,0.00011353,2]
[348790751,1736784655172,-500.0,0.00011353,2]
[348790752,1736784655182,-500.0,0.00011353,2]
[348790753,1736784655192,-500.0,0.00011353,2]
[348790754,1736784655202,-575.01,0.00011353,2]
[348790755,1736784655211,-500.0,0.00011353,2]
[348790756,1736784655221,-500.0,0.00011353,2]
[348790757,1736784655231,-500.0,0.00011353,2]
[348790758,1736784655241,-500.0,0.00011353,2]
[348790759,1736784655251,-500.0,0.00011353,2]
[348790760,1736784655260,-500.0,0.00011353,2]
[348790761,1736784655271,-1276.19,0.00011353,2]
[348790762,1736784655281,-751.07,0.00011353,2]
[348790763,1736784655291,-500.0,0.00011353,2]
[348790764,1736784655301,-500.0,0.00011353,2]
[348790765,1736784655311,-500.0,0.00011353,2]
[348790766,1736784655322,-500.0,0.00011353,2]
[348790767,1736784655333,-1202.55,0.00011353,2]
[348790768,1736784655345,-1399.18,0.00011353,2]
[348790769,1736784655356,-500.0,0.00011353,2]
[348790770,1736784655366,-500.0,0.00011353,2]
[348790771,1736784655376,-500.0,0.00011353,2]
[348790772,1736784655386,-1000.0,0.00011353,2]
[348790773,1736784655395,-1000.0,0.00011421,2]
[348790774,1736784655405,-31438.0,0.000115,2]
[348790775,1736784655414,-2751.0,0.00011507,2]
[348790776,1736784655424,-895.83,0.00011624,2]
[348790777,1736784655433,-908.87,0.00011624,2]
[348790778,1736784655443,-554.43,0.00011624,2]
[348790779,1736784655453,-1387.85,0.00011624,2]
[348790780,1736784655462,-500.0,0.00011624,2]
[348790781,1736784655472,-575.83,0.00011624,2]
[348790782,1736784655481,-500.0,0.00011624,2]
[348790783,1736784655491,-738.35,0.00011624,2]
[348790784,1736784655501,-500.0,0.00011624,2]
[348790785,1736784655511,-700.2,0.00011624,2]
[348790786,1736784655521,-1826.27,0.00011624,2]
[348790787,1736784655531,-2587.88,0.00011624,2]
[348790788,1736784655541,-1103.18,0.00011624,2]
[348790789,1736784655551,-500.0,0.00011624,2]
[348790790,1736784655562,-586.745394,0.00011624,2]
[348790791,1736784655572,-1572.32,0.00011624,2]
[348790792,1736784655581,-683.91,0.00011624,2]
[348790793,1736784655591,-1604.05,0.00011624,2]
[348790794,1736784655605,-500.0,0.00011624,2]
[348790795,1736784655615,-896.25,0.00011624,2]
[348790796,1736784655625,-1111.42,0.00011624,2]
[348790797,1736784655635,-2315.63,0.00011624,2]
[348790798,1736784655645,-432.799174,0.00011624,2]
[348790799,1736784655654,-500.0,0.00011624,2]
[348790800,1736784655664,-798.97,0.00011624,2]
[348790801,1736784655674,-790.8,0.00011624,2]
[348790802,1736784655686,-500.0,0.00011624,2]
[348790803,1736784655748,-159.837098,0.00011624,2]
[348790804,1736784655759,-1288.39,0.00011624,2]
[348790805,1736784655769,-566.2,0.00011624,2]
[348790806,1736784655779,-542.51,0.00011624,2]
[348790807,1736784655789,-743.11,0.00011624,2]
[348790808,1736784655798,-1132.98,0.00011624,2]
[348790809,1736784655808,-921.47,0.00011624,2]
[348790810,1736784655818,-500.0,0.00011624,2]
[348790811,1736784655828,-1476.23,0.00011624,2]
[348790812,1736784655838,-500.0,0.00011624,2]
[348790813,1736784655850,-500.0,0.00011624,2]
[348790814,1736784655860,-595.67,0.00011624,2]
[348790815,1736784655869,-2925.21,0.00011624,2]
[348790816,1736784655879,-1317.21,0.00011624,2]
[348790817,1736784655889,-2581.5,0.00011624,2]
[348790818,1736784655900,-4415.29,0.00011624,2]
[348790819,1736784655911,-500.0,0.00011624,2]
[348790820,1736784655920,-500.0,0.00011624,2]
[348790821,1736784655929,-500.0,0.00011625,2]
[348790822,1736784655939,-500.0,0.00011625,2]
[348790823,1736784655949,-500.0,0.00011625,2]
[348790824,1736784655958,-500.0,0.00011625,2]
[348790825,1736784655968,-500.0,0.00011625,2]
[348790826,1736784655978,-500.0,0.00011625,2]
[348790827,1736784655987,-500.0,0.00011625,2]
[348790828,1736784655997,-500.0,0.00011625,2]
[348790829,1736784656006,-556.01,0.00011625,2]
[348790830,1736784656016,-527.93,0.00011625,2]
[348790831,1736784656026,-630.1766194,0.00011625,2]
[348790832,1736784656036,-561.88,0.00011625,2]
[348790833,1736784656045,-643.2,0.00011625,2]
[348790834,1736784656055,-500.0,0.00011625,2]
[348790835,1736784656064,-500.0,0.00011625,2]
[348790836,1736784656074,-519.96,0.00011625,2]
[348790837,1736784656084,-500.0,0.00011625,2]
[348790838,1736784656093,-500.0,0.00011625,2]
[348790839,1736784656105,-500.0,0.00011625,2]
[348790840,1736784656114,-500.0,0.00011625,2]
[348790841,1736784656125,-500.0,0.00011625,2]
[348790842,1736784656134,-500.0,0.00011625,2]
[348790843,1736784656143,-500.0,0.00011625,2]
[348790844,1736784656153,-500.0,0.00011625,2]
[348790845,1736784656162,-500.0,0.00011625,2]
[348790846,1736784656172,-500.0,0.00011625,2]
[348790847,1736784656182,-537.27,0.00011625,2]
[348790848,1736784656192,-500.0,0.00011625,2]
[348790849,1736784656202,-500.0,0.00011625,2]
[348790850,1736784656211,-500.0,0.00011625,2]
[348790851,1736784656221,-500.0,0.00011625,2]
[348790852,1736784656231,-500.0,0.00011625,2]
[348790853,1736784656241,-500.0,0.00011625,2]
[348790854,1736784656250,-500.0,0.00011625,2]
[348790855,1736784656259,-500.0,0.00011625,2]
[348790856,1736784656269,-517.41,0.00011625,2]
[348790857,1736784656279,-500.0,0.00011625,2]
[348790858,1736784656290,-500.0,0.00011625,2]
[348790859,1736784656300,-500.0,0.00011625,2]
[348790860,1736784656310,-500.0,0.00011625,2]
[348790861,1736784656321,-500.0,0.00011625,2]
[348790862,1736784656330,-500.0,0.00011625,2]
[348790863,1736784656340,-245.40244956,0.00011625,2]
[348790864,1736784656356,-500.0,0.00011625,2]
[348790865,1736784656366,-508.68,0.00011625,2]
[348790866,1736784656375,-500.0,0.00011625,2]
[348790867,1736784656384,-500.0,0.00011625,2]
[348790868,1736784656394,-500.0,0.00011625,2]
[348790869,1736784656404,-500.0,0.00011625,2]
[348790870,1736784656416,-512.66,0.00011625,2]
[348790871,1736784656426,-1032.55,0.00011625,2]
[348790872,1736784656436,-500.0,0.00011625,2]
[348790873,1736784656446,-500.0,0.00011625,2]
[348790874,1736784656456,-500.0,0.00011625,2]
[348790875,1736784656465,-1004.08,0.00011625,2]
[348790876,1736784656475,-500.0,0.00011625,2]
[348790877,1736784656484,-500.0,0.00011625,2]
[348790878,1736784656494,-500.0,0.00011625,2]
[348790879,1736784656503,-500.0,0.00011625,2]
[348790880,1736784656513,-500.0,0.00011625,2]
[348790881,1736784656522,-500.0,0.00011625,2]
[348790882,1736784656532,-500.0,0.00011625,2]
[348790883,1736784656542,-748.64,0.00011625,2]
[348790884,1736784656552,-560.9,0.00011625,2]
[348790885,1736784656561,-101.25485788,0.00011625,2]
[348790886,1736784656575,-398.74514212,0.00011625,2]
[348790887,1736784656585,-500.0,0.00011625,2]
[348790888,1736784656597,-32.49645252,0.00011625,2]
[348790889,1736784656609,-467.50354748,0.00011625,2]
[348790890,1736784656619,-500.0,0.00011625,2]
[348790891,1736784656628,-617.80059592,0.00011625,2]
[348790892,1736784656640,-522.8,0.00011625,2]
[348790893,1736784656654,-837.38940408,0.00011625,2]
[348790894,1736784656664,-500.0,0.00011625,2]
[348790895,1736784656675,-500.0,0.00011625,2]
[348790896,1736784656686,-500.0,0.00011625,2]
[348790897,1736784656697,-500.0,0.00011625,2]
[348790898,1736784656707,-576.50586244,0.00011625,2]
[348790899,1736784656719,-500.0,0.00011625,2]
[348790900,1736784656728,-500.0,0.00011625,2]
[348790901,1736784656739,-500.0,0.00011625,2]
[348790902,1736784656750,-500.0,0.00011625,2]
[348790903,1736784656760,-1272.9,0.00011625,2]
[348790904,1736784656772,-1283.58,0.00011625,2]
[348790905,1736784656782,-500.0,0.00011625,2]
[348790906,1736784656793,-807.29,0.00011625,2]
[348790907,1736784656803,-1230.1,0.00011625,2]
[348790908,1736784656814,-500.0,0.00011625,2]
[348790909,1736784656824,-369.89510631,0.00011625,2]
[348790910,1736784656834,-500.0,0.00011625,2]
[348790911,1736784656843,-500.0,0.00011625,2]
[348790912,1736784656855,-500.0,0.00011625,2]
[348790913,1736784656865,-201.06996649,0.00011625,2]
[348790914,1736784656874,-500.0,0.00011625,2]
[348790915,1736784656884,-2096.32,0.00011625,2]
[348790916,1736784656894,-500.0,0.00011625,2]
[348790917,1736784656903,-500.0,0.00011625,2]
[348790918,1736784656914,-500.0,0.00011625,2]
[348790919,1736784656923,-500.0,0.00011625,2]
[348790920,1736784656933,-500.0,0.00011625,2]
[348790921,1736784656943,-500.0,0.00011625,2]
[348790922,1736784656953,-500.0,0.00011625,2]
[348790923,1736784656963,-1195.07,0.00011625,2]
[348790924,1736784656973,-500.0,0.00011625,2]
[348790925,1736784656983,-1195.07,0.00011625,2]
[348790926,1736784656994,-500.0,0.00011625,2]
[348790927,1736784657004,-500.0,0.00011625,2]
[348790928,1736784657013,-487.72108227,0.00011625,2]
[348790929,1736784657022,-55.63565386,0.00011625,2]
[348790930,1736784657034,-444.36434614,0.00011625,2]
[348790931,1736784657043,-62.8180877,0.00011625,2]
[348790932,1736784657236,-500.0,9.98e-05,2]
[348790933,1736784657247,-500.0,9.98e-05,2]
[348790934,1736784657256,-500.0,0.00010254,2]
[348790935,1736784657267,-460.0,0.00010803,2]
[348790936,1736784657278,-40.0,0.00010803,2]
[348790937,1736784657289,-500.0,0.00011077,2]
[348790938,1736784657299,-500.0,0.00011351,2]
[348790939,1736784657309,-437.1819123,0.00011625,2]
[348790940,1736784657320,-500.0,0.00011625,2]
[348790941,1736784657329,-500.0,0.00011625,2]
[348790942,1736784657339,-500.0,0.00011625,2]
[348790943,1736784657351,-323.8180877,0.00011625,2]
[348790944,1736784657362,-176.1819123,0.00011625,2]
[348790945,1736784657373,-444.7062338,0.00011625,2]
[348790946,1736784657385,-55.2937662,0.00011625,2]
[348790947,1736784657394,-314.92,0.00011625,2]
[348790948,1736784657403,-446.15043503,0.00011626,2]
[348790949,1736784657415,-53.84956497,0.00011626,2]
[348790950,1736784657424,-510.95,0.00011626,2]
[348790951,1736784657434,-53.99467438,0.00011626,2]
[348790952,1736784657445,-427.03552129,0.00011626,2]
[348790953,1736784657456,-18.96980433,0.00011626,2]
[348790954,1736784657465,-500.0,0.00011626,2]
[348790955,1736784657474,-408.74,0.00011626,2]
[348790956,1736784657484,-500.0,0.00011626,2]
[348790957,1736784657493,-500.0,0.00011626,2]
[348790958,1736784657502,-500.0,0.00011626,2]
[348790959,1736784657511,-500.0,0.00011626,2]
[348790960,1736784657520,-500.0,0.00011626,2]
[348790961,1736784657529,-500.0,0.00011626,2]
[348790962,1736784657538,-14.81019567,0.00011626,2]
[348790963,1736784657573,-500.0,9.983e-05,2]
[348790964,1736784657583,-485.18980433,0.00011626,2]
[348790965,1736784657592,-500.0,0.00011626,2]
[348790966,1736784657606,-500.0,0.00011626,2]
[348790967,1736784657617,-500.0,0.00011626,2]
[348790968,1736784657626,-500.0,0.00011626,2]
[348790969,1736784657635,-500.0,0.00011626,2]
[348790970,1736784657644,-500.0,0.00011626,2]
[348790971,1736784657653,-500.0,0.00011626,2]
[348790972,1736784657663,-500.0,0.00011626,2]
[348790973,1736784657672,-500.0,0.00011626,2]
[348790974,1736784657682,-500.0,0.00011626,2]
[348790975,1736784657694,-500.0,0.00011627,2]
[348790976,1736784657704,-500.0,0.00011627,2]
[348790977,1736784657713,-591.0,0.00011627,2]
[348790978,1736784657723,-500.0,0.00011627,2]
[348790979,1736784657734,-500.0,0.00011627,2]
[348790980,1736784657742,-500.0,0.00011627,2]
[348790981,1736784657751,-500.0,0.00011627,2]
[348790982,1736784657761,-640.94,0.00011627,2]
[348790983,1736784657772,-500.0,0.00011627,2]
[348790984,1736784657782,-561.16,0.00011627,2]
[348790985,1736784657792,-500.0,0.00011627,2]
[348790986,1736784657801,-500.0,0.00011627,2]
[348790987,1736784657810,-14.71019567,0.00011627,2]
[348790988,1736784658078,-485.28980433,0.00011627,2]
[348790989,1736784658089,-603.22,0.00011627,2]
[348790990,1736784658105,-500.0,0.00011627,2]
[348790991,1736784658114,-565.67,0.00011627,2]
[348790992,1736784658124,-500.0,0.00011627,2]
[348790993,1736784658135,-500.0,0.00011627,2]
[348790994,1736784658145,-145.82019567,0.00011627,2]
[348790995,1736784658158,-354.17980433,0.00011627,2]
[348790996,1736784658168,-159.90486651,0.00011627,2]
[348790997,1736784658184,-340.09513349,0.00011627,2]
[348790998,1736784658194,-500.0,0.00011627,2]
[348790999,1736784658204,-160.58286651,0.00011627,2]
[348791000,1736784658216,-339.41713349,0.00011627,2]
[348791001,1736784658226,-500.0,0.00011627,2]
[348791002,1736784658237,-500.0,0.00011627,2]
[348791003,1736784658247,-575.01,0.00011627,2]
[348791004,1736784658257,-500.0,0.00011627,2]
[348791005,1736784658267,-500.0,0.00011627,2]
[348791006,1736784658277,-500.0,0.00011627,2]
[348791007,1736784658288,-1276.19,0.00011627,2]
[348791008,1736784658299,-751.07,0.00011627,2]
[348791009,1736784658308,-500.0,0.00011627,2]
[348791010,1736784658318,-500.0,0.00011627,2]
[348791011,1736784658328,-216.08334772,0.00011627,2]
[348791012,1736784658341,-511.57256825,0.00011627,2]
[348791013,1736784658364,-334.76241483,0.00011627,2]
[348791014,1736784658377,-140.1316692,0.00011627,2]
[348791015,1736784658386,-1399.18,0.00011627,2]
[348791016,1736784658396,-500.0,0.00011627,2]
[348791017,1736784658406,-1000.0,0.00011627,2]
[348791018,1736784658416,-165.528,0.0001168,2]
[348791019,1736784658425,-970.9248,0.00011801,2]
[348791020,1736784658435,-895.83,0.00011898,2]
[348791021,1736784658446,-908.87,0.00011898,2]
[348791022,1736784658456,-554.43,0.00011898,2]
[348791023,1736784658465,-163.13,0.00011898,2]
[348791024,1736784658475,-1387.85,0.00011898,2]
[348791025,1736784658485,-575.83,0.00011898,2]
[348791026,1736784658495,-500.0,0.00011898,2]
[348791027,1736784658505,-738.35,0.00011898,2]
[348791028,1736784658515,-500.0,0.00011898,2]
[348791029,1736784658526,-700.2,0.00011898,2]
[348791030,1736784658535,-1826.27,0.00011898,2]
[348791031,1736784658546,-2587.88,0.00011898,2]
[348791032,1736784658556,-1103.18,0.00011898,2]
[348791033,1736784658566,-586.745394,0.00011898,2]
[348791034,1736784658575,-1572.32,0.00011898,2]
[348791035,1736784658585,-683.91,0.00011898,2]
[348791036,1736784658595,-1604.05,0.00011898,2]
[348791037,1736784658607,-500.0,0.00011898,2]
[348791038,1736784658616,-896.25,0.00011898,2]
[348791039,1736784658626,-1111.42,0.00011898,2]
[348791040,1736784658636,-2315.63,0.00011898,2]
[348791041,1736784658646,-432.799174,0.00011898,2]
[348791042,1736784658655,-175.50489084,0.00011898,2]
[348791043,1736784702790,153.42,0.000209,31]
[348791044,1736784702842,153.42,0.000209,31]
[348791045,1736784702905,153.42,0.000209,31]
[348791046,1736784702966,153.42,0.000209,31]
[348791047,1736784703025,153.42,0.000209,31]
[348791048,1736784703089,153.42,0.000209,31]
[348791049,1736784703153,153.42,0.000209,31]
[348791050,1736784792252,500.0,0.000228,120]
[348791051,1736784794509,2000.0,0.000228,120]